fUSD/lending_fUSD_20241225
["ID","MTS","AMOUNT","RATE_DAILY","PERIOD"]
[346670603,1735164311066,-500.0,0.00012385,2]
[346670604,1735164311103,-1603.06,0.00012385,2]
[346670605,1735164311138,-500.0,0.00012385,2]
[346670606,1735164311175,-500.0,0.00012385,2]
[346670607,1735164311211,-500.0,0.00012385,2]
[346670608,1735164311248,-500.0,0.00012385,2]
[346670609,1735164311290,-500.0,0.00012385,2]
[346670610,1735164311331,-500.0,0.00012385,2]
[346670611,1735164311366,-500.0,0.00012385,2]
[346670612,1735164311402,-1105.08,0.00012385,2]
[346670613,1735164311438,-500.0,0.00012385,2]
[346670614,1735164311478,-506.72,0.00012385,2]
[346670615,1735164311515,-1692.96,0.00012385,2]
[346670616,1735164311551,-500.0,0.00012385,2]
[346670617,1735164311586,-500.0,0.00012385,2]
[346670618,1735164311622,-1312.03,0.00012385,2]
[346670619,1735164311657,-611.32,0.00012385,2]
[346670620,1735164311692,-623.68,0.00012385,2]
[346670621,1735164311727,-500.0,0.00012385,2]
[346670622,1735164311765,-500.0,0.00012385,2]
[346670623,1735164311803,-500.0,0.00012385,2]
[346670624,1735164311839,-3100.84,0.00012385,2]
[346670625,1735164311876,-1883.52,0.00012385,2]
[346670626,1735164311912,-500.0,0.00012385,2]
[346670627,1735164311949,-579.17,0.00012385,2]
[346670628,1735164311986,-500.0,0.00012385,2]
[346670629,1735164312023,-500.0,0.00012385,2]
[346670630,1735164312059,-500.0,0.00012385,2]
[346670631,1735164312094,-500.0,0.00012385,2]
[346670632,1735164312128,-500.0,0.00012385,2]
[346670633,1735164312163,-717.75,0.00012385,2]
[346670634,1735164312199,-500.0,0.00012385,2]
[346670635,1735164312234,-500.0,0.00012385,2]
[346670636,1735164312270,-847.26,0.00012385,2]
[346670637,1735164312306,-1570.67,0.00012385,2]
[346670638,1735164312342,-500.0,0.00012385,2]
[346670639,1735164312379,-1014.18,0.00012385,2]
[346670640,1735164312419,-11520.3,0.00012385,2]
[346670641,1735164312456,-1216.3,0.00012385,2]
[346670642,1735164312490,-500.0,0.00012385,2]
[346670643,1735164312525,-500.0,0.00012385,2]
[346670644,1735164312559,-500.0,0.00012385,2]
[346670645,1735164312594,-500.0,0.00012385,2]
[346670646,1735164312836,-3191.33,0.00012385,2]
[346670647,1735164312877,-500.0,0.00012385,2]
[346670648,1735164312914,-673.15,0.00012385,2]
[346670649,1735164312950,-500.0,0.00012385,2]
[346670650,1735164312984,-500.0,0.00012385,2]
[346670651,1735164313019,-500.0,0.00012385,2]
[346670652,1735164313055,-915.79,0.00012385,2]
[346670653,1735164313090,-1827.67,0.00012385,2]
[346670654,1735164313124,-513.05,0.00012385,2]
[346670655,1735164313158,-1456.3,0.00012385,2]
[346670656,1735164313192,-500.0,0.00012385,2]
[346670657,1735164313229,-1916.58,0.00012385,2]
[346670658,1735164313263,-500.0,0.00012385,2]
[346670659,1735164313296,-500.0,0.00012385,2]
[346670660,1735164313332,-500.0,0.00012385,2]
[346670661,1735164313368,-500.0,0.00012385,2]
[346670662,1735164313403,-151.0,0.00012385,2]
[346670663,1735164313439,-205.05387204,0.00012385,2]
[346670664,1735164313474,-1026.93,0.00012385,2]
[346670665,1735164313509,-500.0,0.00012385,2]
[346670666,1735164313544,-1765.67,0.00012385,2]
[346670667,1735164313581,-1164.82,0.00012385,2]
[346670668,1735164313614,-519.2,0.00012385,2]
[346670669,1735164313648,-1448.16,0.00012385,2]
[346670670,1735164313681,-227.79589354,0.00012385,2]
[346670671,1735164313714,-915.24,0.00012385,2]
[346670672,1735164313748,-508.06,0.00012385,2]
[346670673,1735164313785,-500.0,0.00012385,2]
[346670674,1735164313822,-500.0,0.00012385,2]
[346670675,1735164313857,-151.0,0.00012385,2]
[346670676,1735164313893,-917.06,0.00012385,2]
[346670677,1735164313928,-871.84,0.00012385,2]
[346670678,1735164313965,-500.0,0.00012385,2]
[346670679,1735164314000,-500.0,0.00012385,2]
[346670680,1735164314038,-3465.87,0.00012385,2]
[346670681,1735164314076,-500.0,0.00012385,2]
[346670682,1735164314114,-500.0,0.00012385,2]
[346670683,1735164314151,-500.0,0.00012385,2]
[346670684,1735164314188,-731.12,0.00012385,2]
[346670685,1735164314226,-2261.85,0.00012385,2]
[346670686,1735164314262,-500.0,0.00012385,2]
[346670687,1735164314301,-1589.3,0.00012385,2]
[346670688,1735164314337,-500.0,0.00012385,2]
[346670689,1735164314373,-500.0,0.00012385,2]
[346670690,1735164314409,-151.0,0.00012385,2]
[346670691,1735164314445,-3907.78,0.00012385,2]
[346670692,1735164314479,-500.0,0.00012385,2]
[346670693,1735164314514,-500.0,0.00012385,2]
[346670694,1735164314549,-352.597255,0.00012385,2]
[346670695,1735164314587,-3075.07,0.00012385,2]
[346670696,1735164314625,-1335.52,0.00012385,2]
[346670697,1735164314660,-500.0,0.00012385,2]
[346670698,1735164314694,-500.0,0.00012385,2]
[346670699,1735164314732,-352.597255,0.00012385,2]
[346670700,1735164314771,-5532.92,0.00012385,2]
[346670701,1735164314809,-16927.22,0.00012385,2]
[346670702,1735164314846,-500.0,0.00012385,2]
[346670703,1735164314888,-500.0,0.00012385,2]
[346670704,1735164314933,-500.0,0.00012385,2]
[346670705,1735164314976,-500.0,0.00012385,2]
[346670706,1735164315022,-500.0,0.00012385,2]
[346670707,1735164315067,-500.0,0.00012385,2]
[346670708,1735164315111,-1498.21,0.00012385,2]
[346670709,1735164315156,-500.0,0.00012385,2]
[346670710,1735164315193,-2605.03,0.00012385,2]
[346670711,1735164315231,-500.0,0.00012385,2]
[346670712,1735164315267,-1727.49,0.00012385,2]
[346670713,1735164315305,-500.0,0.00012385,2]
[346670714,1735164315345,-500.0,0.00012385,2]
[346670715,1735164315384,-500.0,0.00012385,2]
[346670716,1735164315421,-526.04,0.00012385,2]
[346670717,1735164315460,-959.12,0.00012385,2]
[346670718,1735164315501,-500.0,0.00012385,2]
[346670719,1735164315539,-1885.42,0.00012385,2]
[346670720,1735164315578,-3946.16,0.00012385,2]
[346670721,1735164315617,-500.0,0.00012385,2]
[346670722,1735164315652,-500.0,0.00012385,2]
[346670723,1735164315688,-2017.46,0.00012385,2]
[346670724,1735164315723,-500.0,0.00012385,2]
[346670725,1735164315757,-500.0,0.00012385,2]
[346670726,1735164315796,-500.0,0.00012385,2]
[346670727,1735164315834,-263.398572,0.00012385,2]
[346670728,1735164315869,-803.24,0.00012385,2]
[346670729,1735164315902,-1607.88,0.00012385,2]
[346670730,1735164315937,-151.0,0.00012385,2]
[346670731,1735164315973,-500.0,0.00012385,2]
[346670732,1735164316011,-1340.55,0.00012385,2]
[346670733,1735164316048,-752.51,0.00012385,2]
[346670734,1735164316084,-500.0,0.00012385,2]
[346670735,1735164316118,-263.398572,0.00012385,2]
[346670736,1735164316152,-3873.75,0.00012385,2]
[346670737,1735164316187,-500.0,0.00012385,2]
[346670738,1735164316223,-500.0,0.00012385,2]
[346670739,1735164316258,-500.0,0.00012385,2]
[346670740,1735164316293,-719.51,0.00012385,2]
[346670741,1735164316329,-575.03,0.00012385,2]
[346670742,1735164316364,-500.0,0.00012385,2]
[346670743,1735164316400,-500.0,0.00012385,2]
[346670744,1735164316436,-500.0,0.00012385,2]
[346670745,1735164316472,-500.0,0.00012385,2]
[346670746,1735164316511,-151.0,0.00012385,2]
[346670747,1735164316547,-500.0,0.00012385,2]
[346670748,1735164316581,-859.57,0.00012385,2]
[346670749,1735164316613,-500.0,0.00012385,2]
[346670750,1735164316644,-500.0,0.00012385,2]
[346670751,1735164316676,-610.05,0.00012385,2]
[346670752,1735164316710,-151.0,0.00012385,2]
[346670753,1735164316745,-500.0,0.00012385,2]
[346670754,1735164316778,-153.993987,0.00012385,2]
[346670755,1735164316812,-500.0,0.00012385,2]
[346670756,1735164316847,-611.27,0.00012385,2]
[346670757,1735164316881,-500.0,0.00012385,2]
[346670758,1735164316914,-500.0,0.00012385,2]
[346670759,1735164316951,-500.0,0.00012385,2]
[346670760,1735164316984,-566.37,0.00012385,2]
[346670761,1735164317019,-500.0,0.00012385,2]
[346670762,1735164317058,-1708.0,0.00012385,2]
[346670763,1735164317093,-1507.55,0.00012385,2]
[346670764,1735164317127,-500.0,0.00012385,2]
[346670765,1735164317316,-1042.1,0.00012385,2]
[346670766,1735164317357,-500.0,0.00012385,2]
[346670767,1735164317394,-500.0,0.00012385,2]
[346670768,1735164317430,-4558.88,0.00012385,2]
[346670769,1735164317467,-500.0,0.00012385,2]
[346670770,1735164317503,-1507.55,0.00012385,2]
[346670771,1735164317540,-1585.78,0.00012385,2]
[346670772,1735164317580,-530.9,0.00012385,2]
[346670773,1735164317616,-500.0,0.00012386,2]
[346670774,1735164317651,-500.0,0.00012386,2]
[346670775,1735164317691,-845.95,0.00012386,2]
[346670776,1735164317726,-500.0,0.00012386,2]
[346670777,1735164317762,-528.64,0.00012386,2]
[346670778,1735164317801,-500.0,0.00012386,2]
[346670779,1735164317839,-510.77,0.00012386,2]
[346670780,1735164317875,-500.0,0.00012386,2]
[346670781,1735164317911,-806.64,0.00012386,2]
[346670782,1735164317946,-396.33369759,0.00012386,2]
[346670783,1735164317980,-500.0,0.00012386,2]
[346670784,1735164318016,-500.0,0.00012386,2]
[346670785,1735164318053,-500.0,0.00012386,2]
[346670786,1735164318088,-500.0,0.00012386,2]
[346670787,1735164318123,-500.0,0.00012386,2]
[346670788,1735164318157,-531.8,0.00012386,2]
[346670789,1735164318192,-500.0,0.00012386,2]
[346670790,1735164318226,-500.0,0.00012386,2]
[346670791,1735164318261,-500.0,0.00012386,2]
[346670792,1735164318295,-567.43,0.00012386,2]
[346670793,1735164318331,-151.0,0.00012386,2]
[346670794,1735164318365,-500.0,0.00012386,2]
[346670795,1735164318402,-500.0,0.00012386,2]
[346670796,1735164318438,-500.0,0.00012386,2]
[346670797,1735164318473,-500.0,0.00012386,2]
[346670798,1735164318509,-151.0,0.00012386,2]
[346670799,1735164318543,-151.0,0.00012386,2]
[346670800,1735164318578,-151.0,0.00012386,2]
[346670801,1735164318612,-151.0,0.00012386,2]
[346670802,1735164318647,-151.0,0.00012386,2]
[346670803,1735164318682,-151.0,0.00012386,2]
[346670804,1735164318716,-158.370267,0.00012386,2]
[346670805,1735164318750,-151.0,0.00012386,2]
[346670806,1735164318790,-151.0,0.00012386,2]
[346670807,1735164318825,-151.0,0.00012386,2]
[346670808,1735164318860,-221.518524,0.00012386,2]
[346670809,1735164318894,-221.518524,0.00012386,2]
[346670810,1735164318930,-381.906707,0.00012386,2]
[346670811,1735164318965,-381.906707,0.00012386,2]
[346670812,1735164319000,-151.0,0.00012386,2]
[346670813,1735164319037,-151.0,0.00012386,2]
[346670814,1735164319073,-345.45079,0.00012386,2]
[346670815,1735164319108,-345.45079,0.00012386,2]
[346670816,1735164319142,-151.0,0.00012386,2]
[346670817,1735164319180,-151.0,0.00012386,2]
[346670818,1735164319221,-202.980963,0.00012387,2]
[346670819,1735164319261,-151.0,0.00012387,2]
[346670820,1735164319301,-151.0,0.00012387,2]
[346670821,1735164319349,-151.0,0.00012387,2]
[346670822,1735164319387,-151.0,0.00012387,2]
[346670823,1735164319426,-635.312118,0.00012387,2]
[346670824,1735164319465,-635.312118,0.00012387,2]
[346670825,1735164319505,-151.0,0.00012387,2]
[346670826,1735164319547,-500.0,0.00012387,2]
[346670827,1735164319594,-500.0,0.00012387,2]
[346670828,1735164319634,-579.06,0.00012387,2]
[346670829,1735164319671,-152.821398,0.00012387,2]
[346670830,1735164319708,-500.0,0.00012387,2]
[346670831,1735164319744,-910.59,0.00012387,2]
[346670832,1735164319782,-500.0,0.00012387,2]
[346670833,1735164319820,-500.0,0.00012387,2]
[346670834,1735164319857,-803.65,0.00012387,2]
[346670835,1735164319895,-500.0,0.00012387,2]
[346670836,1735164319933,-151.0,0.00012387,2]
[346670837,1735164319970,-500.0,0.00012387,2]
[346670838,1735164320006,-151.0,0.00012387,2]
[346670839,1735164320045,-500.0,0.00012387,2]
[346670840,1735164320087,-151.0,0.00012387,2]
[346670841,1735164320127,-794.42,0.00012387,2]
[346670842,1735164320161,-151.0,0.00012387,2]
[346670843,1735164320197,-796.9,0.00012387,2]
[346670844,1735164320234,-500.0,0.00012387,2]
[346670845,1735164320268,-151.0,0.00012387,2]
[346670846,1735164320304,-500.0,0.00012387,2]
[346670847,1735164320340,-500.0,0.00012387,2]
[346670848,1735164320376,-500.0,0.00012387,2]
[346670849,1735164320411,-500.0,0.00012387,2]
[346670850,1735164320448,-500.0,0.00012387,2]
[346670851,1735164320484,-500.0,0.00012387,2]
[346670852,1735164320521,-500.0,0.00012387,2]
[346670853,1735164320559,-500.0,0.00012387,2]
[346670854,1735164320597,-500.0,0.00012387,2]
[346670855,1735164320633,-680.6,0.00012387,2]
[346670856,1735164320667,-500.0,0.00012387,2]
[346670857,1735164320701,-790.34,0.00012387,2]
[346670858,1735164320736,-817.59,0.00012387,2]
[346670859,1735164320773,-500.0,0.00012387,2]
[346670860,1735164320810,-500.0,0.00012387,2]
[346670861,1735164320845,-500.0,0.00012387,2]
[346670862,1735164320880,-500.0,0.00012387,2]
[346670863,1735164320915,-500.0,0.00012387,2]
[346670864,1735164320950,-500.0,0.00012387,2]
[346670865,1735164320985,-500.0,0.00012387,2]
[346670866,1735164321020,-500.0,0.00012387,2]
[346670867,1735164321061,-500.0,0.00012387,2]
[346670868,1735164321096,-718.52,0.00012387,2]
[346670869,1735164321133,-500.0,0.00012387,2]
[346670870,1735164321170,-500.0,0.00012387,2]
[346670871,1735164321205,-500.0,0.00012387,2]
[346670872,1735164321241,-500.0,0.00012387,2]
[346670873,1735164321277,-940.98,0.00012387,2]
[346670874,1735164321314,-500.0,0.00012387,2]
[346670875,1735164321350,-638.17,0.00012387,2]
[346670876,1735164321388,-646.8,0.00012387,2]
[346670877,1735164321426,-500.0,0.00012387,2]
[346670878,1735164321465,-1098.82,0.00012387,2]
[346670879,1735164321503,-500.0,0.00012387,2]
[346670880,1735164321726,-1042.71,0.00012387,2]
[346670881,1735164321766,-500.0,0.00012387,2]
[346670882,1735164321805,-500.0,0.00012387,2]
[346670883,1735164321843,-500.0,0.00012387,2]
[346670884,1735164321880,-625.84,0.00012387,2]
[346670885,1735164321917,-500.0,0.00012387,2]
[346670886,1735164321955,-619.74,0.00012387,2]
[346670887,1735164321991,-500.0,0.00012387,2]
[346670888,1735164322028,-1076.99,0.00012387,2]
[346670889,1735164322065,-500.0,0.00012387,2]
[346670890,1735164322103,-923.48,0.00012387,2]
[346670891,1735164322140,-500.0,0.00012387,2]
[346670892,1735164322177,-500.0,0.00012387,2]
[346670893,1735164322214,-912.48,0.00012387,2]
[346670894,1735164322250,-500.0,0.00012387,2]
[346670895,1735164322287,-500.0,0.00012387,2]
[346670896,1735164322324,-500.0,0.00012387,2]
[346670897,1735164322361,-500.0,0.00012387,2]
[346670898,1735164322398,-813.79,0.00012387,2]
[346670899,1735164322436,-13314.56792385,0.00012399,2]
[346670900,1735164322475,-13314.56792377,0.00012399,2]
[346670901,1735164322513,-13314.56792377,0.00012399,2]
[346670902,1735164322550,-13314.56792377,0.00012399,2]
[346670903,1735164322588,-13314.56792377,0.00012399,2]
[346670904,1735164322627,-13314.56792377,0.00012399,2]
[346670905,1735164322664,-13314.56792377,0.00012399,2]
[346670906,1735164322700,-13314.56792377,0.00012399,2]
[346670907,1735164322737,-13314.56792377,0.00012399,2]
[346670908,1735164322776,-13314.56792377,0.00012399,2]
[346670909,1735164322816,-4288.34508394,0.00012399,2]
[346670910,1735164322854,-4288.34508387,0.00012399,2]
[346670911,1735164322891,-4288.34508387,0.00012399,2]
[346670912,1735164322928,-4288.34508387,0.00012399,2]
[346670913,1735164322964,-4288.34508387,0.00012399,2]
[346670914,1735164323003,-4288.34508387,0.00012399,2]
[346670915,1735164323042,-4288.34508387,0.00012399,2]
[346670916,1735164323082,-4288.34508387,0.00012399,2]
[346670917,1735164323121,-4288.34508387,0.00012399,2]
[346670918,1735164323159,-4288.34508387,0.00012399,2]
[346670919,1735164323197,-151.0,0.00012399,2]
[346670920,1735164323236,-151.0,0.00012399,2]
[346670921,1735164323275,-1000.0,0.00012421,2]
[346670922,1735164323314,-1000.0,0.00012421,2]
[346670923,1735164323351,-1000.0,0.00012421,2]
[346670924,1735164323391,-425.54014375,0.00012421,2]
[346670925,1735164323433,-500.0,0.00012421,2]
[346670926,1735164323471,-500.0,0.00012421,2]
[346670927,1735164323510,-416.73,0.00012423,2]
[346670928,1735164323546,-594.0,0.00012436,2]
[346670929,1735164323585,-1000.0,0.00012474,2]
[346670930,1735164323622,-512.14557557,0.00012513,2]
[346670931,1735164323659,-151.0,0.00012522,2]
[346670932,1735164323696,-151.0,0.00012522,2]
[346670933,1735164323733,-199.659478,0.00012522,2]
[346670934,1735164323775,-151.0,0.00012522,2]
[346670935,1735164323815,-500.0,0.00012524,2]
[346670936,1735164323855,-877.684,0.00012534,2]
[346670937,1735164323895,-165.19057036,0.0001261,2]
[346670938,1735164323935,-151.0,0.00012659,2]
[346670939,1735164323981,-578.56,0.00012659,2]
[346670940,1735164324021,-151.0,0.00012659,2]
[346670941,1735164324060,-500.0,0.00012659,2]
[346670942,1735164324097,-500.0,0.00012659,2]
[346670943,1735164324134,-500.0,0.00012659,2]
[346670944,1735164324170,-500.0,0.00012659,2]
[346670945,1735164324208,-500.0,0.00012659,2]
[346670946,1735164324244,-500.0,0.00012659,2]
[346670947,1735164324282,-500.0,0.00012659,2]
[346670948,1735164324318,-500.0,0.00012659,2]
[346670949,1735164324356,-500.0,0.00012659,2]
[346670950,1735164324394,-500.0,0.00012659,2]
[346670951,1735164324432,-500.0,0.00012659,2]
[346670952,1735164324470,-500.0,0.00012659,2]
[346670953,1735164324507,-151.0,0.00012659,2]
[346670954,1735164324543,-500.0,0.00012659,2]
[346670955,1735164324581,-587.69,0.00012659,2]
[346670956,1735164324617,-500.0,0.00012659,2]
[346670957,1735164324657,-598.79,0.00012659,2]
[346670958,1735164324696,-500.0,0.00012659,2]
[346670959,1735164324740,-500.0,0.00012659,2]
[346670960,1735164324780,-500.0,0.00012659,2]
[346670961,1735164324818,-500.0,0.00012659,2]
[346670962,1735164324855,-500.0,0.00012659,2]
[346670963,1735164324892,-500.0,0.00012659,2]
[346670964,1735164324930,-500.0,0.00012659,2]
[346670965,1735164324967,-500.0,0.00012659,2]
[346670966,1735164325005,-500.0,0.00012659,2]
[346670967,1735164325042,-621.48577905,0.00012659,2]
[346670968,1735164325080,-500.0,0.00012659,2]
[346670969,1735164325119,-500.0,0.00012659,2]
[346670970,1735164325157,-500.0,0.00012659,2]
[346670971,1735164325198,-500.0,0.00012659,2]
[346670972,1735164325240,-500.0,0.00012659,2]
[346670973,1735164325282,-500.0,0.00012659,2]
[346670974,1735164325322,-500.0,0.00012659,2]
[346670975,1735164325362,-500.0,0.00012659,2]
[346670976,1735164325405,-500.0,0.00012659,2]
[346670977,1735164325446,-500.0,0.00012659,2]
[346670978,1735164325487,-500.0,0.00012659,2]
[346670979,1735164325524,-500.0,0.00012659,2]
[346670980,1735164325563,-268.57832306,0.00012659,2]
[346670981,1735164325601,-151.0,0.00012659,2]
[346670982,1735164325637,-500.0,0.00012659,2]
[346670983,1735164325674,-591.25,0.00012659,2]
[346670984,1735164325713,-500.0,0.00012659,2]
[346670985,1735164325751,-500.0,0.00012659,2]
[346670986,1735164325789,-151.0,0.00012659,2]
[346670987,1735164325827,-500.0,0.00012659,2]
[346670988,1735164325865,-500.0,0.00012659,2]
[346670989,1735164325901,-500.0,0.00012659,2]
[346670990,1735164326117,-500.0,0.00012659,2]
[346670991,1735164326157,-500.0,0.00012659,2]
[346670992,1735164326195,-500.0,0.00012659,2]
[346670993,1735164326234,-500.0,0.00012659,2]
[346670994,1735164326272,-500.0,0.00012659,2]
[346670995,1735164326312,-500.0,0.00012659,2]
[346670996,1735164326350,-500.0,0.00012659,2]
[346670997,1735164326388,-500.0,0.00012659,2]
[346670998,1735164326426,-500.0,0.00012659,2]
[346670999,1735164326467,-500.0,0.00012659,2]
[346671000,1735164326505,-471.96658246,0.00012659,2]
[346671001,1735164326542,-617.72293691,0.00012659,2]
[346671002,1735164326580,-151.0,0.00012659,2]
[346671003,1735164326615,-500.0,0.00012659,2]
[346671004,1735164326652,-500.0,0.00012659,2]
[346671005,1735164326690,-151.0,0.00012659,2]
[346671006,1735164326726,-500.0,0.00012659,2]
[346671007,1735164326763,-500.0,0.00012659,2]
[346671008,1735164326806,-500.0,0.00012659,2]
[346671009,1735164326846,-500.0,0.00012659,2]
[346671010,1735164326882,-500.0,0.00012659,2]
[346671011,1735164326919,-500.0,0.00012659,2]
[346671012,1735164326957,-500.0,0.00012659,2]
[346671013,1735164326994,-500.0,0.00012659,2]
[346671014,1735164327031,-500.0,0.00012659,2]
[346671015,1735164327068,-500.0,0.00012659,2]
[346671016,1735164327106,-500.0,0.00012659,2]
[346671017,1735164327141,-500.0,0.00012659,2]
[346671018,1735164327176,-500.0,0.00012659,2]
[346671019,1735164327216,-500.0,0.00012659,2]
[346671020,1735164327252,-500.0,0.00012659,2]
[346671021,1735164327289,-500.0,0.00012659,2]
[346671022,1735164327325,-500.0,0.00012659,2]
[346671023,1735164327364,-191.308641,0.00012659,2]
[346671024,1735164327401,-500.0,0.00012659,2]
[346671025,1735164327437,-500.0,0.00012659,2]
[346671026,1735164327475,-500.0,0.00012659,2]
[346671027,1735164327511,-500.0,0.00012659,2]
[346671028,1735164327546,-500.0,0.00012659,2]
[346671029,1735164327582,-151.0,0.00012659,2]
[346671030,1735164327618,-635.312118,0.00012659,2]
[346671031,1735164327656,-151.0,0.00012659,2]
[346671032,1735164327694,-635.312118,0.00012659,2]
[346671033,1735164327730,-500.0,0.00012659,2]
[346671034,1735164327766,-500.0,0.00012659,2]
[346671035,1735164327802,-151.0,0.00012659,2]
[346671036,1735164327840,-158.58854702,0.00012659,2]
[346671037,1735164327878,-500.0,0.00012659,2]
[346671038,1735164327926,-512.66623059,0.00012659,2]
[346671039,1735164327967,-935.74,0.00012659,2]
[346671040,1735164328007,-500.0,0.00012659,2]
[346671041,1735164328046,-500.0,0.00012659,2]
[346671042,1735164328084,-500.0,0.00012659,2]
[346671043,1735164328123,-500.0,0.00012659,2]
[346671044,1735164328161,-1066.39,0.00012659,2]
[346671045,1735164328199,-500.0,0.00012659,2]
[346671046,1735164328237,-500.0,0.00012659,2]
[346671047,1735164328275,-500.0,0.00012659,2]
[346671048,1735164328312,-500.0,0.00012659,2]
[346671049,1735164328348,-500.0,0.00012659,2]
[346671050,1735164328388,-636.34,0.00012659,2]
[346671051,1735164328424,-500.0,0.00012659,2]
[346671052,1735164328464,-509.21,0.00012659,2]
[346671053,1735164328499,-500.0,0.00012659,2]
[346671054,1735164328537,-500.0,0.00012659,2]
[346671055,1735164328574,-500.0,0.00012659,2]
[346671056,1735164328610,-500.0,0.00012659,2]
[346671057,1735164328646,-500.0,0.00012659,2]
[346671058,1735164328681,-500.0,0.00012659,2]
[346671059,1735164328717,-500.0,0.00012659,2]
[346671060,1735164328756,-1080.81,0.00012659,2]
[346671061,1735164328798,-151.0,0.00012659,2]
[346671062,1735164328837,-500.0,0.00012659,2]
[346671063,1735164328876,-500.0,0.00012659,2]
[346671064,1735164328912,-500.0,0.00012659,2]
[346671065,1735164328950,-500.0,0.00012659,2]
[346671066,1735164328987,-151.0,0.00012659,2]
[346671067,1735164329027,-500.0,0.00012659,2]
[346671068,1735164329065,-500.0,0.00012659,2]
[346671069,1735164329106,-500.0,0.00012659,2]
[346671070,1735164329145,-500.0,0.00012659,2]
[346671071,1735164329184,-500.0,0.00012659,2]
[346671072,1735164329222,-630.64811084,0.00012659,2]
[346671073,1735164329260,-500.0,0.00012659,2]
[346671074,1735164329298,-500.0,0.00012659,2]
[346671075,1735164329337,-500.0,0.00012659,2]
[346671076,1735164329376,-1275.074193,0.00012659,2]
[346671077,1735164329414,-500.0,0.00012659,2]
[346671078,1735164329453,-1036.97,0.00012659,2]
[346671079,1735164329491,-1588.927792,0.00012659,2]
[346671080,1735164329531,-718.73,0.00012659,2]
[346671081,1735164329571,-448.2206713,0.00012659,2]
[346671082,1735164329608,-500.0,0.00012659,2]
[346671083,1735164329645,-500.0,0.00012659,2]
[346671084,1735164329683,-151.0,0.00012659,2]
[346671085,1735164329725,-500.0,0.00012659,2]
[346671086,1735164329763,-288.1,0.00012659,2]
[346671087,1735164329807,-500.0,0.00012659,2]
[346671088,1735164329843,-500.0,0.00012659,2]
[346671089,1735164329881,-500.0,0.00012659,2]
[346671090,1735164329918,-500.0,0.00012659,2]
[346671091,1735164329954,-999.65,0.00012659,2]
[346671092,1735164329992,-925.0,0.00012659,2]
[346671093,1735164330029,-500.0,0.00012659,2]
[346671094,1735164330066,-504.79,0.00012659,2]
[346671095,1735164330106,-500.0,0.00012659,2]
[346671096,1735164330371,-709.37,0.00012659,2]
[346671097,1735164330410,-500.0,0.00012659,2]
[346671098,1735164330449,-500.0,0.00012659,2]
[346671099,1735164330489,-771.1,0.00012659,2]
[346671100,1735164330531,-500.0,0.00012659,2]
[346671101,1735164330572,-500.0,0.00012659,2]
[346671102,1735164330612,-702.5,0.00012659,2]